Workbook

Sheet 2025 expenses
A1: Utilities
A2: Discription | B2: Jan | C2: Feb | D2: March | E2: April | F2: May | G2: June | H2: July | I2: Aug | J2: Sep | K2: Oct | L2: Nov | M2: Dec | O2: Yearly
A3: CP Gas | B3: 445.38 | C3: 541.88 | D3: 580.35 | E3: 476.19 | F3: 276.43 | G3: 480.99 | H3: 687.44 | I3: 578.61 | J3: 264.67 | K3: 239.99 | L3: 274.95 | M3: 566.94 | O3: =SUM(B3:M3) -> 5413.82
A4: electric big (Apts 7-26) | B4: 1437.9 | C4: 1589.81 | D4: 1483.4 | E4: 1350.98 | F4: 798.8 | G4: 904.45 | H4: 1310 | I4: 1291.7 | J4: 1394.66 | K4: 1458.32 | L4: 1267.62 | M4: 1094.52 | O4: 15382.16 | P4: =O4+O5 -> 22725.88
A5: electric small (Apts 1-6) | B5: 378.94 | C5: 517.58 | D5: 494.32 | E5: 469.32 | F5: 386.07 | G5: 385.54 | H5: 623.28 | I5: 824.06 | J5: 908.36 | K5: 953.26 | L5: 877.41 | M5: 525.58 | O5: 7343.72 | P5: Total electric above
A6: water | B6: 930.64 | C6: 941 | D6: 1026 | E6: 1042.61 | F6: 780.11 | G6: 942.61 | H6: 942.61 | I6: 875.11 | J6: 906.99 | K6: 903.49 | L6: 909.61 | M6: 906.11 | O6: 11106.89
A7: Utilities monthly totals | B7: =SUM(B3:B6) -> 3192.86 | C7: 3590.27 | D7: 3584.07 | E7: 3339.1 | F7: 2241.41 | G7: 2713.59 | H7: 3563.33 | I7: 3569.48 | J7: 3474.68 | K7: 3555.06 | L7: 3329.59 | M7: 3093.15 | O7: =O3+O4+O5+O6 -> 39246.59 | P7: Utilities Yearly Total
A9: Naples ins | B9: 652.35 | C9: 652.35 | D9: 652.35 | E9: 652.35 | F9: 652.35 | G9: 652.35 | H9: 720.71 | I9: 720.71 | J9: 720.71 | K9: 720.71 | L9: 720.71 | M9: 720.71 | O9: =SUM(B9:M9) -> 8238.36 | P9: Naples Ins Yearly Total
A10: Apartments land tax | B10: 773.88 | C10: 773.88 | D10: 773.88 | E10: 773.88 | F10: 773.88 | G10: 773.88 | H10: 773.88 | I10: 773.88 | J10: 773.88 | K10: 773.88 | L10: 773.88 | M10: 773.88 | O10: 9286.56 | P10: Land tax Yearly Total Estimated 2025
O11: 9286.52 | P11: Land tax Yearly Total 2024
A12: Total monthly expenses | B12: =B10+B9+B7 -> 4619.09 | C12: 5016.5 | D12: 5010.3 | E12: 4765.33 | F12: 3667.64 | G12: 4139.82 | H12: 5057.92 | I12: 5064.07 | J12: 4969.27 | K12: 5049.65 | L12: 4824.18 | M12: 4587.74
A14: Total yearly expenses 2025 | B14: =O7+O9+O10 -> 56771.51
E16: 1 | F16: 66.72
E17: 2 | F17: 68.23
E18: 3 | F18: 75.62
E19: 4 | F19: 79.77
E20: 5 | F20: 99.83
E21: 6 | F21: 135.41
F22: =F16+F17+F18+F19+F20+F21 -> 525.58

Sheet 2025 profit
A1: 2025
A2: Jan | B2: 10249.68
A3: Feb | B3: 10750
A4: March | B4: 10495
A5: April | B5: 10225
A6: May | B6: 10435
A7: June | B7: 10279
A8: July | B8: 9927
A9: Aug | B9: 10175
A10: Sep | B10: 10675
A11: Oct | B11: 9450
A12: Nov | B12: 10513
A13: Dec | B13: 9409
A14: Total | B14: =SUM(B2:B13) -> 122582.68
A15: Average | B15: =B14/12 -> 10215.22333
